[Event "98th Caplin Hastings Masters 2024-25"]
[Site "Hastings"]
[Date "2025.01.01"]
[Round "7.47"]
[White "Chapman, Luke"]
[Black "Keely, Leo A"]
[Result "0-1"]
[ECO "B01"]
[WhiteElo "1706"]
[BlackElo "1899"]
[Annotator "NA RC"]
[PlyCount "58"]
[EventDate "2024.12.23"]
[EventType "swiss"]
[EventCountry "ENG"]
[SourceTitle "playchess.com"]
[Source "ChessBase"]
[SourceQuality "1"]
[TimeControl "5400+30"]

1. e4 {[%emt 0:00:02]} d5 {[%emt 0:00:38]} 2. exd5 {[%emt 0:00:05]} Nf6 {[%emt 0:00:10]} 3. Bb5+ {[%emt 0:00:03]} Nbd7 {[%emt 0:02:12]} 4. d4 {[%emt 0:00:09]} Nxd5 {[%emt 0:01:40]} 5. Nf3 {[%emt 0:00:24]} g6 {[%emt 0:03:41]} 6. O-O {[%emt 0:00:33]} Bg7 {[%emt 0:01:27]} 7. Re1 {[%emt 0:07:10]} O-O {[%emt 0:01:04]} 8. Bf1 {[%emt 0:01:09]} b6 {[%emt 0:06:55]} 9. c4 {[%emt 0:00:48]} N5f6 {[%emt 0:00:37]} 10. g3 {[%emt 0:01:22]} Bb7 {[%emt 0:01:15]} 11. Bg2 {[%emt 0:00:10]} e6 {[%emt 0:07:08]} 12. Nc3 {[%emt 0:02:03]} h6 {[%emt 0:01:14]} 13. Bf4 {[%emt 0:05:10]} a6 {[%emt 0:00:41]} 14. Qc2 {[%emt 0:02:06]} Nh5 {[%emt 0:03:08]} 15. Bd2 {[%emt 0:02:45]} Rc8 {[%emt 0:02:22]} 16. Rad1 {[%emt 0:05:06]} c6 {[%emt 0:08:48]} 17. Ne4 {[%emt 0:02:49]} Qc7 {[%emt 0:00:40]} 18. Qc1 {[%emt 0:16:36]} g5 {[%emt 0:07:50]} 19. h4 {[%emt 0:04:28]} f5 {[%emt 0:02:05]} 20. hxg5 {[%emt 0:27:43]} fxe4 {[%emt 0:01:17]} 21. Rxe4 {[%emt 0:00:37]} c5 {[%emt 0:03:10]} 22. d5 {[%emt 0:00:02]} exd5 {[%emt 0:04:17]} 23. Rh4 {[%emt 0:00:52]} d4 {[%emt 0:02:32]} 24. Ne1 {[%emt 0:01:45]} Nxg3 {[%emt 0:03:53]} 25. fxg3 {[%emt 0:00:39]} Qxg3 {[%emt 0:00:10]} 26. Rh3 {[%emt 0:04:52]} Qf2+ {[%emt 0:00:32]} 27. Kh1 {[%emt 0:00:05]} Qf1+ {[%emt 0:03:14]} 28. Kh2 {[%emt 0:00:02]} Be5+ {[%emt 0:00:11]} 29. Rg3 {[%emt 0:00:20]} Qf2 {[%emt 0:00:16]} 0-1

[Event "98th Caplin Hastings Masters 2024-25"]
[Site "Hastings"]
[Date "2025.01.01"]
[Round "7.48"]
[White "Swiatkowski, Dominik"]
[Black "Ruane, Brendan J"]
[Result "1-0"]
[ECO "C63"]
[WhiteElo "1744"]
[BlackElo "1869"]
[Annotator "NA RC"]
[PlyCount "60"]
[EventDate "2024.12.23"]
[EventType "swiss"]
[EventCountry "ENG"]
[SourceTitle "playchess.com"]
[Source "ChessBase"]
[SourceQuality "1"]
[TimeControl "5400+30"]

1. e4 {[%emt 0:00:03]} e5 {[%emt 0:00:17]} 2. Nf3 {[%emt 0:00:05]} Nc6 {[%emt 0:00:08]} 3. Bb5 {[%emt 0:00:14]} f5 {[%emt 0:00:38]} 4. d3 {[%emt 0:00:08]} fxe4 {[%emt 0:00:07]} 5. dxe4 {[%emt 0:00:07]} Nf6 {[%emt 0:00:26]} 6. O-O {[%emt 0:00:21]} d6 {[%emt 0:00:09]} 7. Bc4 {[%emt 0:00:43]} Bg4 {[%emt 0:00:22]} 8. h3 {[%emt 0:18:19]} Bh5 {[%emt 0:00:41]} 9. Qd3 {[%emt 0:03:16]} h6 {[%emt 0:03:29]} 10. a4 {[%emt 0:12:41]} Nd7 {[%emt 0:18:47]} 11. g4 {[%emt 0:19:40]} Nc5 {[%emt 0:02:43]} 12. Qe2 {[%emt 0:11:38]} Bg6 {[%emt 0:00:08]} 13. Nc3 {[%emt 0:02:26]} Qd7 {[%emt 0:00:58]} 14. Rd1 {[%emt 0:03:13]} a6 {[%emt 0:05:42]} 15. b4 {[%emt 0:04:28]} Ne6 {[%emt 0:00:20]} 16. Bxe6 {[%emt 0:00:19]} Qxe6 {[%emt 0:00:07]} 17. Nd5 {[%emt 0:00:17]} Rc8 {[%emt 0:20:22]} 18. Bb2 {[%emt 0:05:39]} Be7 {[%emt 0:00:36]} 19. b5 {[%emt 0:04:01]} Nb8 {[%emt 0:00:22]} 20. Qc4 {[%emt 0:02:12]} Kf7 {[%emt 0:06:21]} 21. Qd3 {[%emt 0:08:22]} axb5 {[%emt 0:03:15]} 22. axb5 {[%emt 0:00:09]} Nd7 {[%emt 0:00:20]} 23. Ba3 {[%emt 0:01:15]} c6 {[%emt 0:01:36]} 24. Nxe7 {[%emt 0:00:31]} Qxe7 {[%emt 0:00:18]} 25. Bxd6 {[%emt 0:00:29]} Qe6 {[%emt 0:00:12]} 26. bxc6 {[%emt 0:00:43]} Rxc6 {[%emt 0:00:15]} 27. Ra7 {[%emt 0:01:04]} Rhc8 {[%emt 0:02:54]} 28. Rxb7 {[%emt 0:00:23]} Kg8 {[%emt 0:00:07]} 29. Rxd7 {[%emt 0:00:52]} Qxd7 {[%emt 0:00:23]} 30. Nxe5 {[%emt 0:00:15]} Qe8 {[%emt 0:03:37]} 1-0

[Event "98th Caplin Hastings Masters 2024-25"]
[Site "Hastings"]
[Date "2025.01.01"]
[Round "7.49"]
[White "Kim, Nayoon B"]
[Black "Buckland, Louis"]
[Result "0-1"]
[ECO "A10"]
[WhiteElo "1663"]
[BlackElo "1856"]
[Annotator "NA RC"]
[PlyCount "48"]
[EventDate "2024.12.23"]
[EventType "swiss"]
[EventCountry "ENG"]
[SourceTitle "playchess.com"]
[Source "ChessBase"]
[SourceQuality "1"]
[TimeControl "5400+30"]

1. c4 {[%emt 0:00:02]} b6 {[%emt 0:00:02]} 2. Nc3 {[%emt 0:00:05]} Bb7 {[%emt 0:00:04]} 3. e4 {[%emt 0:00:06]} e6 {[%emt 0:00:04]} 4. d3 {[%emt 0:00:03]} Bb4 {[%emt 0:00:26]} 5. Bd2 {[%emt 0:03:08]} Ne7 {[%emt 0:00:44]} 6. g3 {[%emt 0:00:44]} O-O {[%emt 0:02:55]} 7. Bg2 {[%emt 0:01:32]} Na6 {[%emt 0:07:46]} 8. a3 {[%emt 0:11:17]} Bxc3 {[%emt 0:00:57]} 9. Bxc3 {[%emt 0:00:39]} d5 {[%emt 0:05:41]} 10. exd5 {[%emt 0:08:09]} exd5 {[%emt 0:02:10]} 11. Ne2 {[%emt 0:01:21]} Nc5 {[%emt 0:04:22]} 12. O-O {[%emt 0:04:19]} Ne6 {[%emt 0:04:12]} 13. Re1 {[%emt 0:09:57]} Qd7 {[%emt 0:03:38]} 14. Qc1 {[%emt 0:11:00]} c5 {[%emt 0:04:00]} 15. b4 {[%emt 0:09:09]} Rac8 {[%emt 0:10:28]} 16. Nf4 {[%emt 0:36:59]} Nxf4 {[%emt 0:06:08]} 17. Qxf4 {[%emt 0:00:00]} Ng6 {[%emt 0:01:02]} 18. Qg5 {[%emt 0:00:00]} d4 {[%emt 0:04:45]} 19. Bxb7 {[%emt 0:01:30]} Qxb7 {[%emt 0:01:08]} 20. Bb2 {[%emt 0:00:00]} f6 {[%emt 0:00:29]} 21. Qh5 {[%emt 0:00:00]} Ne5 {[%emt 0:01:54]} 22. Red1 {[%emt 0:00:00]} Rfe8 {[%emt 0:02:26]} 23. f4 {[%emt 0:00:00]} g6 {[%emt 0:01:42]} 24. Qh3 {[%emt 0:00:07]} Nf3+ {[%emt 0:01:07]} 0-1

[Event "98th Caplin Hastings Masters 2024-25"]
[Site "Hastings"]
[Date "2025.01.01"]
[Round "7.50"]
[White "Choi, Hyunbin"]
[Black "Stokes, Stephen"]
[Result "0-1"]
[ECO "B04"]
[WhiteElo "1673"]
[BlackElo "1866"]
[Annotator "NA RC"]
[PlyCount "110"]
[EventDate "2024.12.23"]
[EventType "swiss"]
[EventCountry "ENG"]
[SourceTitle "playchess.com"]
[Source "ChessBase"]
[SourceQuality "1"]
[TimeControl "5400+30"]

1. e4 {[%emt 0:00:04]} Nf6 {[%emt 0:00:09]} 2. e5 {[%emt 0:00:20]} Nd5 {[%emt 0:00:07]} 3. d4 {[%emt 0:00:05]} d6 {[%emt 0:00:12]} 4. c4 {[%emt 0:00:24]} Nb6 {[%emt 0:00:14]} 5. Nf3 {[%emt 0:01:30]} g6 {[%emt 0:01:22]} 6. exd6 {[%emt 0:00:46]} cxd6 {[%emt 0:00:09]} 7. Be2 {[%emt 0:00:16]} Bg7 {[%emt 0:00:41]} 8. O-O {[%emt 0:00:26]} O-O {[%emt 0:01:13]} 9. Nc3 {[%emt 0:01:03]} Nc6 {[%emt 0:00:26]} 10. Be3 {[%emt 0:00:37]} Bg4 {[%emt 0:01:28]} 11. b3 {[%emt 0:06:01]} Re8 {[%emt 0:09:32]} 12. Rc1 {[%emt 0:02:14]} d5 {[%emt 0:07:39]} 13. c5 {[%emt 0:01:49]} Nc8 {[%emt 0:00:16]} 14. h3 {[%emt 0:00:11]} Bxf3 {[%emt 0:07:13]} 15. Bxf3 {[%emt 0:00:07]} e6 {[%emt 0:00:14]} 16. Qd2 {[%emt 0:06:31]} a6 {[%emt 0:00:24]} 17. Rfd1 {[%emt 0:02:51]} N8e7 {[%emt 0:00:43]} 18. Na4 {[%emt 0:03:20]} Nf5 {[%emt 0:03:04]} 19. Bg5 {[%emt 0:01:26]} Bf6 {[%emt 0:05:49]} 20. Bxf6 {[%emt 0:02:09]} Qxf6 {[%emt 0:00:12]} 21. Nb6 {[%emt 0:00:18]} Rad8 {[%emt 0:00:26]} 22. Qf4 {[%emt 0:00:44]} Kg7 {[%emt 0:04:28]} 23. Rd3 {[%emt 0:03:49]} Nfxd4 {[%emt 0:02:21]} 24. Qc7 {[%emt 0:02:05]} Re7 {[%emt 0:08:41]} 25. Qg3 {[%emt 0:00:26]} Nxf3+ {[%emt 0:00:39]} 26. Rxf3 {[%emt 0:00:41]} Nd4 {[%emt 0:03:24]} 27. Rxf6 {[%emt 0:02:59]} Ne2+ {[%emt 0:00:51]} 28. Kh2 {[%emt 0:00:02]} Nxg3 {[%emt 0:00:15]} 29. Rf4 {[%emt 0:00:28]} Ne4 {[%emt 0:01:40]} 30. f3 {[%emt 0:01:51]} Nf6 {[%emt 0:01:43]} 31. Na4 {[%emt 0:00:39]} Rc7 {[%emt 0:02:29]} 32. Nb2 {[%emt 0:02:25]} e5 {[%emt 0:07:06]} 33. Rb4 {[%emt 0:00:31]} Nd7 {[%emt 0:03:06]} 34. Nd3 {[%emt 0:01:37]} f6 {[%emt 0:00:25]} 35. Ra4 {[%emt 0:02:18]} Rdc8 {[%emt 0:01:20]} 36. b4 {[%emt 0:00:34]} f5 {[%emt 0:02:29]} 37. Ra3 {[%emt 0:00:31]} Kf6 {[%emt 0:01:03]} 38. Rac3 {[%emt 0:01:11]} Nb8 {[%emt 0:00:50]} 39. a4 {[%emt 0:05:58]} Nc6 {[%emt 0:01:13]} 40. b5 {[%emt 0:01:10]} axb5 {[%emt 0:02:16]} 41. axb5 {[%emt 0:00:18]} Nd4 {[%emt 0:00:59]} 42. Rb1 {[%emt 0:04:11]} e4 {[%emt 0:01:34]} 43. c6 {[%emt 0:03:23]} bxc6 {[%emt 0:02:38]} 44. b6 {[%emt 0:00:13]} Re7 {[%emt 0:03:22]} 45. Nb4 {[%emt 0:02:01]} Ke5 {[%emt 0:04:28]} 46. Na6 {[%emt 0:07:14]} Rb7 {[%emt 0:01:14]} 47. Nc5 {[%emt 0:00:09]} Rbb8 {[%emt 0:00:38]} 48. Nd7+ {[%emt 0:02:56]} Kd6 {[%emt 0:00:07]} 49. Nxb8 {[%emt 0:00:57]} Rxb8 {[%emt 0:00:05]} 50. Rd1 {[%emt 0:04:03]} Nb5 {[%emt 0:00:35]} 51. Rc2 {[%emt 0:02:21]} Rxb6 {[%emt 0:00:09]} 52. Kg3 {[%emt 0:00:38]} Ke5 {[%emt 0:02:36]} 53. fxe4 {[%emt 0:02:38]} fxe4 {[%emt 0:01:05]} 54. Rc5 {[%emt 0:00:24]} Nd4 {[%emt 0:00:32]} 55. Rc3 {[%emt 0:00:53]} Ne2+ {[%emt 0:00:07]} 0-1

[Event "98th Caplin Hastings Masters 2024-25"]
[Site "Hastings"]
[Date "2025.01.01"]
[Round "7.52"]
[White "Bryant, Marc A"]
[Black "Prudent, Sylvio"]
[Result "0-1"]
[ECO "B00"]
[WhiteElo "1825"]
[BlackElo "1780"]
[Annotator "NA RC"]
[PlyCount "62"]
[EventDate "2024.12.23"]
[EventType "swiss"]
[EventCountry "ENG"]
[SourceTitle "playchess.com"]
[Source "ChessBase"]
[SourceQuality "1"]
[TimeControl "5400+30"]

1. e4 {[%emt 0:00:03]} b6 {[%emt 0:00:21]} 2. d4 {[%emt 0:00:30]} Bb7 {[%emt 0:00:04]} 3. Nc3 {[%emt 0:00:36]} e6 {[%emt 0:00:06]} 4. Bf4 {[%emt 0:00:37]} Bb4 {[%emt 0:00:10]} 5. Bd3 {[%emt 0:00:33]} Nf6 {[%emt 0:00:11]} 6. f3 {[%emt 0:00:32]} Nc6 {[%emt 0:01:23]} 7. a3 {[%emt 0:01:55]} Bxc3+ {[%emt 0:01:55]} 8. bxc3 {[%emt 0:00:07]} Qe7 {[%emt 0:08:00]} 9. Bg5 {[%emt 0:01:43]} h6 {[%emt 0:00:12]} 10. Bh4 {[%emt 0:00:14]} g5 {[%emt 0:01:36]} 11. Bg3 {[%emt 0:00:46]} Nh5 {[%emt 0:01:18]} 12. Ne2 {[%emt 0:00:04]} O-O-O {[%emt 0:07:06]} 13. Bf2 {[%emt 0:03:47]} Ng7 {[%emt 0:04:54]} 14. c4 {[%emt 0:03:57]} d5 {[%emt 0:02:13]} 15. cxd5 {[%emt 0:01:19]} exd5 {[%emt 0:00:15]} 16. c3 {[%emt 0:02:50]} h5 {[%emt 0:02:13]} 17. Qa4 {[%emt 0:03:38]} Na5 {[%emt 0:03:28]} 18. O-O {[%emt 0:04:23]} dxe4 {[%emt 0:01:56]} 19. fxe4 {[%emt 0:03:11]} Bxe4 {[%emt 0:00:23]} 20. Ba6+ {[%emt 0:01:09]} Kb8 {[%emt 0:05:46]} 21. Rae1 {[%emt 0:00:57]} h4 {[%emt 0:05:34]} 22. h3 {[%emt 0:06:30]} Qd6 {[%emt 0:01:50]} 23. Nc1 {[%emt 0:00:42]} f5 {[%emt 0:01:27]} 24. c4 {[%emt 0:02:20]} Ne6 {[%emt 0:08:39]} 25. c5 {[%emt 0:01:54]} Qd5 {[%emt 0:00:37]} 26. cxb6 {[%emt 0:02:21]} axb6 {[%emt 0:00:41]} 27. Re2 {[%emt 0:02:22]} Nf4 {[%emt 0:00:55]} 28. Rb2 {[%emt 0:02:37]} Bc2 {[%emt 0:02:20]} 29. Bb7 {[%emt 0:05:33]} Kxb7 {[%emt 0:00:59]} 30. Rxb6+ {[%emt 0:00:09]} cxb6 {[%emt 0:00:14]} 31. Na2 {[%emt 0:01:16]} Qxg2# {[%emt 0:00:30]} 0-1